[Event "ROU-ch Open 2021"]
[Site "Iasi"]
[Date "2021.04.20"]
[Round "3.13"]
[White "Gavrilescu, David"]
[Black "Stepanencu, Nicodim-Cosmin"]
[Result "1-0"]
[ECO "B52"]
[WhiteElo "2476"]
[BlackElo "2104"]
[Annotator "RC"]
[PlyCount "50"]
[EventDate "2021.04.19"]
[EventType "swiss"]
[EventCountry "ROU"]
[SourceTitle "playchess.com"]
[Source "ChessBase"]
[SourceQuality "1"]
[TimeControl "5400+30"]

1. e4 {[%emt 0:00:00]} c5 {[%emt 0:00:00]} 2. Nf3 {[%emt 0:00:00]} d6 {[%emt 0:00:03]} 3. Bb5+ {[%emt 0:00:42]} Bd7 {[%emt 0:00:00]} 4. Bxd7+ {[%emt 0:00:10]} Nxd7 {[%emt 0:00:00]} 5. O-O {[%emt 0:00:26]} Ngf6 {[%emt 0:00:00]} 6. Qe2 {[%emt 0:00:16]} e6 {[%emt 0:00:00]} 7. b3 {[%emt 0:00:30]} Be7 {[%emt 0:00:02]} 8. Bb2 {[%emt 0:01:19]} O-O {[%emt 0:01:00]} 9. c4 {[%emt 0:00:54]} a6 {[%emt 0:02:24]} 10. d4 {[%emt 0:01:32]} d5 {[%emt 0:01:18]} 11. cxd5 {[%emt 0:06:02]} exd5 {[%emt 0:00:11]} 12. e5 {[%emt 0:00:22]} Ne4 {[%emt 0:00:08]} 13. Nbd2 {[%emt 0:01:04]} f5 {[%emt 0:16:23]} 14. Rfd1 {[%emt 0:06:59]} Qb6 {[%emt 0:03:57]} 15. Nf1 {[%emt 0:09:24]} Rfd8 {[%emt 0:02:44]} 16. Ne3 {[%emt 0:07:29]} Qe6 {[%emt 0:01:21]} 17. g3 {[%emt 0:09:01]} Nf8 {[%emt 0:13:55]} 18. dxc5 {[%emt 0:06:53]} Bxc5 {[%emt 0:00:16]} 19. Nd4 {[%emt 0:01:06]} Bxd4 {[%emt 0:00:13]} 20. Rxd4 {[%emt 0:01:51]} Qxe5 {[%emt 0:19:53]} 21. Rxd5 {[%emt 0:01:11]} Qe6 {[%emt 0:00:08]} 22. Rxf5 {[%emt 0:04:37]} Ng6 {[%emt 0:05:42]} 23. Qg4 {[%emt 0:02:33]} Rd7 {[%emt 0:01:22]} 24. h4 {[%emt 0:02:23]} h5 {[%emt 0:05:19]} 25. Rxh5 {[%emt 0:04:37]} Qxg4 {[%emt 0:00:13]} 1-0

[Event "ROU-ch Open 2021"]
[Site "Iasi"]
[Date "2021.04.20"]
[Round "3.14"]
[White "Ognean, Mihnea-Ionut"]
[Black "Antal, Hunor-Zoltan"]
[Result "1/2-1/2"]
[ECO "C09"]
[WhiteElo "2298"]
[BlackElo "2023"]
[Annotator "NA"]
[PlyCount "106"]
[EventDate "2021.04.19"]
[EventType "swiss"]
[EventCountry "ROU"]
[SourceTitle "playchess.com"]
[Source "ChessBase"]
[SourceQuality "1"]
[TimeControl "5400+30"]

1. e4 {[%emt 0:00:00]} e6 {[%emt 0:00:00]} 2. d4 {[%emt 0:00:04]} d5 {[%emt 0:00:00]} 3. Nd2 {[%emt 0:00:24]} c5 {[%emt 0:00:00]} 4. Ngf3 {[%emt 0:00:15]} Nc6 {[%emt 0:00:07]} 5. exd5 {[%emt 0:00:55]} exd5 {[%emt 0:00:02]} 6. Bb5 {[%emt 0:00:48]} Qe7+ {[%emt 0:00:24]} 7. Qe2 {[%emt 0:03:04]} Qxe2+ {[%emt 0:00:09]} 8. Kxe2 {[%emt 0:04:43]} cxd4 {[%emt 0:01:18]} 9. Nb3 {[%emt 0:03:08]} Bd6 {[%emt 0:00:43]} 10. Nfxd4 {[%emt 0:03:55]} Nge7 {[%emt 0:02:00]} 11. Be3 {[%emt 0:03:10]} Bd7 {[%emt 0:00:43]} 12. Bxc6 {[%emt 0:04:38]} bxc6 {[%emt 0:00:44]} 13. Nf3 {[%emt 0:00:11]} f6 {[%emt 0:05:38]} 14. Kd2 {[%emt 0:01:07]} Kf7 {[%emt 0:01:06]} 15. Bc5 {[%emt 0:01:27]} Bf4+ {[%emt 0:00:29]} 16. Kc3 {[%emt 0:01:09]} g5 {[%emt 0:20:34]} 17. Nfd4 {[%emt 0:09:28]} Ng6 {[%emt 0:03:24]} 18. a4 {[%emt 0:01:05]} Be5 {[%emt 0:08:28]} 19. g3 {[%emt 0:05:55]} Nf8 {[%emt 0:03:18]} 20. h4 {[%emt 0:05:44]} Ne6 {[%emt 0:13:11]} 21. hxg5 {[%emt 0:11:49]} fxg5 {[%emt 0:01:27]} 22. f4 {[%emt 0:05:03]} Bf6 {[%emt 0:01:28]} 23. Rh6 {[%emt 0:07:46]} Kg7 {[%emt 0:11:00]} 24. Rah1 {[%emt 0:04:07]} gxf4 {[%emt 0:02:19]} 25. gxf4 {[%emt 0:00:06]} Nxf4 {[%emt 0:00:33]} 26. Rxf6 {[%emt 0:05:40]} Kxf6 {[%emt 0:00:28]} 27. Rf1 {[%emt 0:00:03]} Kg5 {[%emt 0:01:14]} 28. Nf3+ {[%emt 0:04:39]} Kh5 {[%emt 0:02:20]} 29. Nbd4 {[%emt 0:00:54]} Rhe8 {[%emt 0:02:45]} 30. Bd6 {[%emt 0:01:34]} Ne2+ {[%emt 0:02:06]} 31. Nxe2 {[%emt 0:00:23]} Rxe2 {[%emt 0:00:01]} 32. Rh1+ {[%emt 0:00:25]} Kg4 {[%emt 0:00:17]} 33. Ne5+ {[%emt 0:00:23]} Rxe5 {[%emt 0:00:26]} 34. Bxe5 {[%emt 0:00:07]} h5 {[%emt 0:00:35]} 35. Kd4 {[%emt 0:02:02]} Re8 {[%emt 0:00:50]} 36. Rg1+ {[%emt 0:00:07]} Kf5 {[%emt 0:00:31]} 37. Rf1+ {[%emt 0:00:17]} Kg4 {[%emt 0:00:34]} 38. Rg1+ {[%emt 0:00:13]} Kf5 {[%emt 0:02:29]} 39. Rf1+ {[%emt 0:00:16]} Kg5 {[%emt 0:00:40]} 40. Rf7 {[%emt 0:01:16]} c5+ {[%emt 0:02:23]} 41. Kxc5 {[%emt 0:00:06]} Bxa4 {[%emt 0:00:51]} 42. Rxa7 {[%emt 0:00:51]} Rxe5 {[%emt 0:00:48]} 43. Rxa4 {[%emt 0:00:04]} Re2 {[%emt 0:00:29]} 44. Kxd5 {[%emt 0:03:59]} Rxc2 {[%emt 0:00:08]} 45. b4 {[%emt 0:01:08]} h4 {[%emt 0:00:11]} 46. Ra8 {[%emt 0:00:20]} h3 {[%emt 0:00:35]} 47. Rh8 {[%emt 0:00:06]} h2 {[%emt 0:00:31]} 48. b5 {[%emt 0:00:08]} Kg4 {[%emt 0:00:28]} 49. b6 {[%emt 0:00:06]} Rb2 {[%emt 0:00:14]} 50. Kc6 {[%emt 0:00:05]} Kg3 {[%emt 0:00:05]} 51. b7 {[%emt 0:00:06]} Rxb7 {[%emt 0:00:07]} 52. Kxb7 {[%emt 0:00:03]} Kg2 {[%emt 0:00:07]} 53. Rxh2+ {[%emt 0:00:03]} Kxh2 {[%emt 0:00:08]} 1/2-1/2

[Event "ROU-ch Open 2021"]
[Site "Iasi"]
[Date "2021.04.20"]
[Round "3.15"]
[White "Daianu, Cristian-Clement"]
[Black "Botea, David-Alexandru"]
[Result "1/2-1/2"]
[ECO "B07"]
[WhiteElo "2234"]
[BlackElo "2015"]
[Annotator "NA"]
[PlyCount "65"]
[EventDate "2021.04.19"]
[EventType "swiss"]
[EventCountry "ROU"]
[SourceTitle "playchess.com"]
[Source "ChessBase"]
[SourceQuality "1"]
[TimeControl "5400+30"]

1. e4 {[%emt 0:09:48]} d6 {[%emt 0:00:00]} 2. d4 {[%emt 0:00:22]} Nf6 {[%emt 0:00:00]} 3. Nc3 {[%emt 0:00:07]} g6 {[%emt 0:00:00]} 4. Be2 {[%emt 0:00:26]} Bg7 {[%emt 0:00:00]} 5. h4 {[%emt 0:00:06]} c5 {[%emt 0:00:05]} 6. d5 {[%emt 0:00:22]} h5 {[%emt 0:02:13]} 7. Nh3 {[%emt 0:00:44]} Nbd7 {[%emt 0:09:41]} 8. a4 {[%emt 0:04:17]} Ne5 {[%emt 0:05:23]} 9. Ng5 {[%emt 0:15:18]} O-O {[%emt 0:05:33]} 10. Bf4 {[%emt 0:06:53]} Nfg4 {[%emt 0:11:28]} 11. Qd2 {[%emt 0:08:25]} Qb6 {[%emt 0:06:45]} 12. Nd1 {[%emt 0:14:54]} f5 {[%emt 0:16:27]} 13. a5 {[%emt 0:12:17]} Qd8 {[%emt 0:01:03]} 14. f3 {[%emt 0:04:54]} Nf6 {[%emt 0:01:20]} 15. Nc3 {[%emt 0:05:51]} fxe4 {[%emt 0:01:18]} 16. Ncxe4 {[%emt 0:00:19]} Nxe4 17. Nxe4 {[%emt 0:00:35]} Bf5 {[%emt 0:01:20]} 18. Ng5 {[%emt 0:01:14]} Qd7 {[%emt 0:08:04]} 19. O-O {[%emt 0:06:25]} b5 {[%emt 0:02:42]} 20. Ra3 {[%emt 0:04:44]} Nf7 {[%emt 0:11:57]} 21. Nxf7 {[%emt 0:01:43]} Rxf7 {[%emt 0:00:06]} 22. c3 {[%emt 0:00:40]} a6 {[%emt 0:00:24]} 23. Re1 {[%emt 0:00:24]} Rb8 {[%emt 0:04:42]} 24. Raa1 {[%emt 0:00:27]} Rbf8 {[%emt 0:01:53]} 25. Bg3 {[%emt 0:00:07]} Kh7 {[%emt 0:00:25]} 26. Bd3 {[%emt 0:00:22]} Bh6 {[%emt 0:00:14]} 27. Qc2 {[%emt 0:00:08]} c4 {[%emt 0:05:31]} 28. Bxf5 {[%emt 0:00:08]} Rxf5 {[%emt 0:00:02]} 29. Re6 {[%emt 0:00:23]} R8f7 {[%emt 0:02:16]} 30. Rae1 {[%emt 0:00:16]} Bg7 {[%emt 0:02:37]} 31. Bf2 {[%emt 0:02:03]} Bf6 {[%emt 0:00:48]} 32. Qe4 {[%emt 0:00:45]} Qb7 {[%emt 0:01:04]} 33. Rd1 {[%emt 0:00:10]} 1/2-1/2

[Event "ROU-ch Open 2021"]
[Site "Iasi"]
[Date "2021.04.20"]
[Round "3.16"]
[White "Statescu-Enescu, Vlad"]
[Black "Coca, Cristi-Iulian"]
[Result "0-1"]
[ECO "E90"]
[WhiteElo "1735"]
[BlackElo "2153"]
[Annotator "NA"]
[PlyCount "90"]
[EventDate "2021.04.19"]
[EventType "swiss"]
[EventCountry "ROU"]
[SourceTitle "playchess.com"]
[Source "ChessBase"]
[SourceQuality "1"]
[TimeControl "5400+30"]

1. d4 {[%emt 0:00:38]} Nf6 {[%emt 0:00:00]} 2. Nf3 {[%emt 0:01:08]} g6 {[%emt 0:00:00]} 3. c4 {[%emt 0:00:46]} Bg7 {[%emt 0:00:00]} 4. Nc3 {[%emt 0:01:20]} O-O {[%emt 0:00:08]} 5. e4 {[%emt 0:00:49]} d6 {[%emt 0:00:08]} 6. h3 {[%emt 0:00:38]} e5 {[%emt 0:06:07]} 7. d5 {[%emt 0:05:53]} Nh5 {[%emt 0:00:31]} 8. Be3 {[%emt 0:05:11]} Qe8 {[%emt 0:04:38]} 9. Qd2 {[%emt 0:03:33]} f5 {[%emt 0:01:59]} 10. Bh6 {[%emt 0:02:45]} f4 {[%emt 0:15:48]} 11. Bxg7 {[%emt 0:00:26]} Kxg7 {[%emt 0:00:06]} 12. O-O-O {[%emt 0:00:34]} a5 {[%emt 0:01:27]} 13. Nb5 {[%emt 0:03:34]} Qd8 {[%emt 0:05:04]} 14. Qc3 {[%emt 0:04:52]} Nd7 {[%emt 0:04:54]} 15. Bd3 {[%emt 0:05:11]} Rf6 {[%emt 0:08:57]} 16. Qa3 {[%emt 0:03:49]} b6 {[%emt 0:06:39]} 17. Rhe1 {[%emt 0:09:57]} Nc5 {[%emt 0:03:16]} 18. Bf1 {[%emt 0:03:45]} Bd7 {[%emt 0:01:12]} 19. b3 {[%emt 0:06:58]} Bxb5 {[%emt 0:09:10]} 20. cxb5 {[%emt 0:01:34]} Rf7 {[%emt 0:01:50]} 21. Bc4 {[%emt 0:11:24]} h6 {[%emt 0:01:14]} 22. Kc2 {[%emt 0:07:40]} Nf6 {[%emt 0:02:07]} 23. Nd2 {[%emt 0:01:05]} Nh7 {[%emt 0:03:09]} 24. f3 {[%emt 0:00:28]} Qg5 {[%emt 0:01:01]} 25. Re2 {[%emt 0:00:48]} Nf6 {[%emt 0:01:11]} 26. Qc1 {[%emt 0:01:13]} Qh4 {[%emt 0:02:46]} 27. a4 {[%emt 0:00:48]} g5 {[%emt 0:01:11]} 28. Nf1 {[%emt 0:03:38]} h5 {[%emt 0:02:49]} 29. Qd2 {[%emt 0:01:29]} g4 {[%emt 0:00:50]} 30. Qe1 {[%emt 0:00:46]} Qg5 {[%emt 0:01:42]} 31. Rdd2 {[%emt 0:00:36]} Rg8 {[%emt 0:01:22]} 32. h4 {[%emt 0:03:32]} Qg6 {[%emt 0:00:22]} 33. Bd3 {[%emt 0:02:42]} Kf8 {[%emt 0:00:09]} 34. Rd1 {[%emt 0:02:03]} Ke7 {[%emt 0:00:47]} 35. Rf2 {[%emt 0:01:32]} Rfg7 {[%emt 0:05:36]} 36. g3 {[%emt 0:01:27]} gxf3 {[%emt 0:00:59]} 37. gxf4 {[%emt 0:00:27]} Nfxe4 {[%emt 0:00:14]} 38. fxe5 {[%emt 0:02:13]} Nxd3 {[%emt 0:00:21]} 39. exd6+ {[%emt 0:00:57]} Kxd6 {[%emt 0:00:23]} 40. Rxd3 {[%emt 0:01:12]} Nxf2 {[%emt 0:00:15]} 41. Qxf2 {[%emt 0:00:11]} Qg2 {[%emt 0:03:56]} 42. Rxf3 {[%emt 0:00:23]} Qxf2+ {[%emt 0:00:05]} 43. Rxf2 {[%emt 0:00:08]} Rg2 {[%emt 0:00:03]} 44. Rxg2 {[%emt 0:00:23]} Rxg2+ {[%emt 0:00:01]} 45. Kb1 {[%emt 0:00:47]} Rg1 {[%emt 0:00:05]} 0-1

[Event "ROU-ch Open 2021"]
[Site "Iasi"]
[Date "2021.04.20"]
[Round "3.17"]
[White "Baratosi, Daniel"]
[Black "Panc, Samuel"]
[Result "1/2-1/2"]
[ECO "B22"]
[WhiteElo "2355"]
[BlackElo "1937"]
[Annotator "NA"]
[PlyCount "118"]
[EventDate "2021.04.19"]
[EventType "swiss"]
[EventCountry "ROU"]
[SourceTitle "playchess.com"]
[Source "ChessBase"]
[SourceQuality "1"]
[TimeControl "5400+30"]

1. e4 {[%emt 0:06:56]} c5 {[%emt 0:00:22]} 2. Nf3 {[%emt 0:01:03]} Nf6 {[%emt 0:00:05]} 3. e5 {[%emt 0:00:53]} Nd5 {[%emt 0:00:05]} 4. d4 {[%emt 0:00:06]} cxd4 {[%emt 0:00:04]} 5. c3 {[%emt 0:00:03]} Nc6 {[%emt 0:05:26]} 6. cxd4 {[%emt 0:01:42]} d6 {[%emt 0:01:19]} 7. Bc4 {[%emt 0:00:16]} dxe5 {[%emt 0:00:17]} 8. dxe5 {[%emt 0:09:04]} Ndb4 {[%emt 0:09:17]} 9. O-O {[%emt 0:35:05]} Qxd1 {[%emt 0:02:58]} 10. Rxd1 {[%emt 0:00:03]} Bg4 {[%emt 0:02:39]} 11. Nc3 {[%emt 0:00:30]} Bxf3 {[%emt 0:07:32]} 12. gxf3 {[%emt 0:00:04]} e6 {[%emt 0:20:16]} 13. f4 {[%emt 0:04:03]} Nc2 {[%emt 0:06:13]} 14. Rb1 {[%emt 0:01:04]} N2d4 {[%emt 0:00:21]} 15. Ne4 {[%emt 0:15:25]} O-O-O {[%emt 0:03:03]} 16. Be3 {[%emt 0:02:07]} Be7 {[%emt 0:03:11]} 17. a3 {[%emt 0:09:40]} Rd7 {[%emt 0:09:27]} 18. Rdc1 {[%emt 0:01:34]} Kb8 {[%emt 0:03:21]} 19. Rc3 {[%emt 0:02:17]} Rhd8 {[%emt 0:11:04]} 20. Kf1 {[%emt 0:05:00]} h6 {[%emt 0:05:54]} 21. Rbc1 {[%emt 0:01:56]} Rf8 {[%emt 0:05:39]} 22. h3 {[%emt 0:01:28]} Rfd8 {[%emt 0:00:35]} 23. Ba2 {[%emt 0:00:39]} Bf8 {[%emt 0:01:25]} 24. Bc4 {[%emt 0:00:18]} Be7 {[%emt 0:00:08]} 25. b4 {[%emt 0:00:23]} Bf8 {[%emt 0:00:50]} 26. Rd3 {[%emt 0:00:33]} Nf5 {[%emt 0:00:35]} 27. Rxd7 {[%emt 0:00:15]} Nxe3+ {[%emt 0:00:04]} 28. fxe3 {[%emt 0:00:03]} Rxd7 {[%emt 0:00:07]} 29. Bb5 {[%emt 0:00:51]} Rc7 {[%emt 0:01:01]} 30. Bxc6 {[%emt 0:01:00]} Rxc6 {[%emt 0:00:42]} 31. Rxc6 {[%emt 0:00:08]} bxc6 {[%emt 0:00:05]} 32. Ke2 {[%emt 0:00:07]} Kc7 {[%emt 0:00:20]} 33. Kd3 {[%emt 0:00:03]} Be7 {[%emt 0:01:11]} 34. Kc4 {[%emt 0:00:06]} Bf8 {[%emt 0:00:32]} 35. Nf2 {[%emt 0:01:50]} a5 {[%emt 0:00:42]} 36. bxa5 {[%emt 0:00:25]} Bxa3 {[%emt 0:00:05]} 37. Ne4 {[%emt 0:00:45]} Bc1 {[%emt 0:00:48]} 38. Kd3 {[%emt 0:00:36]} Ba3 {[%emt 0:00:10]} 39. Kd4 {[%emt 0:00:34]} Bb2+ {[%emt 0:00:44]} 40. Kc4 {[%emt 0:00:19]} Ba3 {[%emt 0:00:44]} 41. a6 {[%emt 0:00:21]} Kb6 {[%emt 0:00:33]} 42. Nd6 {[%emt 0:00:05]} f6 {[%emt 0:00:22]} 43. f5 {[%emt 0:01:10]} exf5 {[%emt 0:00:39]} 44. Nc8+ {[%emt 0:00:08]} Kxa6 {[%emt 0:00:13]} 45. e6 {[%emt 0:00:03]} g5 {[%emt 0:00:39]} 46. e7 {[%emt 0:00:03]} Bxe7 {[%emt 0:00:03]} 47. Nxe7 {[%emt 0:00:02]} g4 {[%emt 0:00:59]} 48. hxg4 {[%emt 0:01:40]} fxg4 {[%emt 0:00:05]} 49. Kd3 {[%emt 0:00:01]} Kb5 {[%emt 0:00:47]} 50. Ng8 {[%emt 0:00:28]} g3 {[%emt 0:00:28]} 51. Ke2 {[%emt 0:00:12]} h5 {[%emt 0:00:26]} 52. Nxf6 {[%emt 0:00:25]} h4 {[%emt 0:00:03]} 53. Kf3 {[%emt 0:01:35]} c5 {[%emt 0:01:14]} 54. e4 {[%emt 0:00:19]} c4 {[%emt 0:00:25]} 55. Nd5 {[%emt 0:00:34]} Kc5 {[%emt 0:00:15]} 56. Nc3 {[%emt 0:01:04]} Kd4 {[%emt 0:00:23]} 57. Ne2+ {[%emt 0:00:25]} Ke5 {[%emt 0:00:09]} 58. Nc3 {[%emt 0:00:09]} Kd4 {[%emt 0:00:08]} 59. Ne2+ {[%emt 0:00:07]} Ke5 {[%emt 0:01:12]} 1/2-1/2

[Event "ROU-ch Open 2021"]
[Site "Iasi"]
[Date "2021.04.20"]
[Round "3.18"]
[White "Chiheri, Alexandru-Virgil"]
[Black "Tocan, Cristian"]
[Result "0-1"]
[ECO "B02"]
[WhiteElo "1921"]
[BlackElo "2236"]
[Annotator "NA"]
[PlyCount "74"]
[EventDate "2021.04.19"]
[EventType "swiss"]
[EventCountry "ROU"]
[SourceTitle "playchess.com"]
[Source "ChessBase"]
[SourceQuality "1"]
[TimeControl "5400+30"]

1. e4 {[%emt 0:00:00]} c5 {[%emt 0:01:35]} 2. Nf3 {[%emt 0:00:00]} Nf6 {[%emt 0:00:06]} 3. Nc3 {[%emt 0:00:00]} d5 {[%emt 0:00:06]} 4. exd5 {[%emt 0:03:34]} Nxd5 {[%emt 0:00:15]} 5. Bc4 {[%emt 0:03:15]} e6 {[%emt 0:00:12]} 6. Qe2 {[%emt 0:04:45]} Be7 {[%emt 0:01:21]} 7. O-O {[%emt 0:01:18]} Nc6 {[%emt 0:00:44]} 8. Re1 {[%emt 0:02:35]} O-O {[%emt 0:01:05]} 9. a3 {[%emt 0:05:09]} a6 {[%emt 0:01:08]} 10. Ne4 {[%emt 0:02:52]} b5 {[%emt 0:02:18]} 11. Ba2 {[%emt 0:00:09]} Bb7 {[%emt 0:01:24]} 12. d3 {[%emt 0:00:11]} Nd4 {[%emt 0:02:16]} 13. Qd1 {[%emt 0:01:11]} Rc8 {[%emt 0:03:07]} 14. c3 {[%emt 0:00:56]} Nf5 {[%emt 0:03:42]} 15. Qe2 {[%emt 0:01:19]} Re8 {[%emt 0:01:19]} 16. Bd2 {[%emt 0:03:07]} Nb6 {[%emt 0:03:41]} 17. Neg5 {[%emt 0:04:40]} Bd5 {[%emt 0:03:34]} 18. c4 {[%emt 0:06:12]} bxc4 {[%emt 0:04:31]} 19. dxc4 {[%emt 0:00:15]} Bxf3 {[%emt 0:03:14]} 20. Nxf3 {[%emt 0:00:10]} Bf6 {[%emt 0:00:39]} 21. Rad1 {[%emt 0:01:27]} Qe7 {[%emt 0:05:24]} 22. Bb1 {[%emt 0:04:10]} Nd4 {[%emt 0:04:41]} 23. Nxd4 {[%emt 0:00:29]} Bxd4 {[%emt 0:01:18]} 24. Ba5 {[%emt 0:03:44]} Qb7 {[%emt 0:03:12]} 25. Be4 {[%emt 0:11:24]} Qb8 {[%emt 0:01:33]} 26. b4 {[%emt 0:03:01]} Na4 {[%emt 0:05:11]} 27. Bxh7+ {[%emt 0:01:43]} Kxh7 {[%emt 0:00:27]} 28. Qc2+ {[%emt 0:00:05]} g6 {[%emt 0:01:24]} 29. Qxa4 {[%emt 0:00:20]} Kg7 {[%emt 0:05:12]} 30. bxc5 {[%emt 0:02:11]} Qf4 {[%emt 0:04:23]} 31. Rxd4 {[%emt 0:03:58]} Qxd4 {[%emt 0:00:23]} 32. c6 {[%emt 0:00:05]} Rh8 {[%emt 0:03:16]} 33. c7 {[%emt 0:00:36]} Rh4 {[%emt 0:05:56]} 34. Rc1 {[%emt 0:04:47]} Qd6 {[%emt 0:03:05]} 35. g3 {[%emt 0:00:32]} Rh5 {[%emt 0:02:04]} 36. Rd1 {[%emt 0:12:52]} Rxa5 {[%emt 0:01:06]} 37. Qc2 {[%emt 0:00:18]} Qxc7 {[%emt 0:00:21]} 0-1

[Event "ROU-ch Open 2021"]
[Site "Iasi"]
[Date "2021.04.20"]
[Round "3.19"]
[White "Prisacaru, Stefan-Emilian"]
[Black "Paval, George"]
[Result "1-0"]
[ECO "B06"]
[WhiteElo "1913"]
[BlackElo "2207"]
[Annotator "NA"]
[PlyCount "89"]
[EventDate "2021.04.19"]
[EventType "swiss"]
[EventCountry "ROU"]
[SourceTitle "playchess.com"]
[Source "ChessBase"]
[SourceQuality "1"]
[TimeControl "5400+30"]

1. g3 {[%emt 0:00:00]} Nf6 {[%emt 0:05:42]} 2. Bg2 {[%emt 0:00:00]} g6 {[%emt 0:00:54]} 3. e4 {[%emt 0:00:00]} d6 {[%emt 0:00:33]} 4. d4 {[%emt 0:00:00]} Bg7 {[%emt 0:00:53]} 5. Ne2 {[%emt 0:00:00]} O-O {[%emt 0:01:00]} 6. O-O {[%emt 0:00:22]} a6 {[%emt 0:04:10]} 7. f4 {[%emt 0:04:12]} c5 {[%emt 0:00:48]} 8. dxc5 {[%emt 0:04:12]} dxc5 {[%emt 0:01:12]} 9. Qxd8 {[%emt 0:00:39]} Rxd8 {[%emt 0:00:12]} 10. Nbc3 {[%emt 0:00:49]} Nc6 {[%emt 0:04:52]} 11. e5 {[%emt 0:01:49]} Ng4 {[%emt 0:02:41]} 12. h3 {[%emt 0:03:36]} Nh6 {[%emt 0:00:10]} 13. Be3 {[%emt 0:01:45]} Nd4 {[%emt 0:03:37]} 14. Bxd4 {[%emt 0:00:11]} cxd4 {[%emt 0:00:08]} 15. Nd5 {[%emt 0:00:05]} Bxh3 {[%emt 0:03:20]} 16. Nxe7+ {[%emt 0:01:00]} Kf8 {[%emt 0:01:09]} 17. Nxg6+ {[%emt 0:00:18]} hxg6 {[%emt 0:00:14]} 18. Bxh3 {[%emt 0:00:06]} f6 {[%emt 0:00:59]} 19. Rad1 {[%emt 0:02:03]} Ke7 {[%emt 0:08:21]} 20. exf6+ {[%emt 0:12:58]} Bxf6 {[%emt 0:01:18]} 21. g4 {[%emt 0:00:06]} g5 {[%emt 0:03:44]} 22. Rde1 {[%emt 0:03:21]} Kd6 {[%emt 0:13:02]} 23. fxg5 {[%emt 0:01:25]} Bxg5 {[%emt 0:00:33]} 24. Nxd4 {[%emt 0:00:09]} Re8 {[%emt 0:03:52]} 25. Nf3 {[%emt 0:02:01]} Be3+ {[%emt 0:01:35]} 26. Kh1 {[%emt 0:01:16]} Kc5 {[%emt 0:06:01]} 27. g5 {[%emt 0:00:50]} Nf7 {[%emt 0:01:01]} 28. g6 {[%emt 0:01:14]} Nd6 {[%emt 0:02:33]} 29. g7 {[%emt 0:00:36]} Bh6 {[%emt 0:01:00]} 30. g8=Q {[%emt 0:05:38]} Rxg8 {[%emt 0:02:32]} 31. Re5+ {[%emt 0:00:10]} Kb6 {[%emt 0:01:52]} 32. Re6 {[%emt 0:00:36]} Bf4 {[%emt 0:02:42]} 33. Nd4 {[%emt 0:00:40]} Bg3 {[%emt 0:01:58]} 34. Nf5 {[%emt 0:01:17]} Kc7 {[%emt 0:05:06]} 35. Nxd6 {[%emt 0:01:51]} Bxd6 {[%emt 0:00:07]} 36. Rf7+ {[%emt 0:00:06]} Kc6 {[%emt 0:00:31]} 37. Bg2+ {[%emt 0:00:09]} Rxg2 {[%emt 0:02:05]} 38. Kxg2 {[%emt 0:00:03]} Rg8+ {[%emt 0:00:46]} 39. Kf1 {[%emt 0:00:54]} Kd5 {[%emt 0:00:38]} 40. Rh6 {[%emt 0:00:24]} Be5 {[%emt 0:06:02]} 41. Rxb7 {[%emt 0:01:00]} Bf4 {[%emt 0:01:11]} 42. Rxa6 {[%emt 0:00:28]} Ke4 {[%emt 0:00:10]} 43. Rb4+ {[%emt 0:00:30]} Kf3 {[%emt 0:00:53]} 44. Rf6 {[%emt 0:00:26]} Rg4 {[%emt 0:02:08]} 45. Rfxf4+ {[%emt 0:00:05]} 1-0

[Event "ROU-ch Open 2021"]
[Site "Iasi"]
[Date "2021.04.20"]
[Round "3.20"]
[White "Martian, Dragos-Daniel"]
[Black "Sachilaru, Alexandru"]
[Result "1-0"]
[ECO "B22"]
[WhiteElo "2198"]
[BlackElo "1917"]
[Annotator "NA"]
[PlyCount "93"]
[EventDate "2021.04.19"]
[EventType "swiss"]
[EventCountry "ROU"]
[SourceTitle "playchess.com"]
[Source "ChessBase"]
[SourceQuality "1"]
[TimeControl "5400+30"]

1. e4 {[%emt 0:03:55]} e6 {[%emt 0:00:00]} 2. d4 {[%emt 0:00:05]} c5 {[%emt 0:00:00]} 3. c3 {[%emt 0:00:11]} cxd4 {[%emt 0:00:34]} 4. cxd4 {[%emt 0:00:09]} d6 {[%emt 0:00:12]} 5. Nc3 {[%emt 0:00:06]} Nf6 {[%emt 0:00:12]} 6. Nf3 {[%emt 0:00:08]} Be7 {[%emt 0:00:29]} 7. Bd3 {[%emt 0:00:52]} a6 {[%emt 0:01:14]} 8. O-O {[%emt 0:00:58]} O-O {[%emt 0:00:27]} 9. Qe2 {[%emt 0:01:27]} Nbd7 {[%emt 0:01:46]} 10. e5 {[%emt 0:01:00]} Ne8 {[%emt 0:01:12]} 11. Bf4 {[%emt 0:02:15]} d5 {[%emt 0:00:51]} 12. Rad1 {[%emt 0:03:52]} b5 {[%emt 0:04:16]} 13. Ne4 {[%emt 0:09:31]} Bb7 {[%emt 0:01:10]} 14. Neg5 {[%emt 0:00:18]} g6 {[%emt 0:01:03]} 15. h4 {[%emt 0:02:47]} Ng7 {[%emt 0:01:22]} 16. Bc1 {[%emt 0:07:14]} Rc8 {[%emt 0:07:06]} 17. Nh2 {[%emt 0:01:13]} Qe8 {[%emt 0:13:06]} 18. Bb1 {[%emt 0:04:05]} f6 {[%emt 0:03:59]} 19. exf6 {[%emt 0:00:28]} Bxf6 {[%emt 0:00:08]} 20. Ng4 {[%emt 0:02:25]} h5 {[%emt 0:03:23]} 21. Nh6+ {[%emt 0:05:48]} Kh8 {[%emt 0:00:09]} 22. Rfe1 {[%emt 0:01:36]} Bxg5 {[%emt 0:00:34]} 23. hxg5 {[%emt 0:02:16]} Rc6 {[%emt 0:04:55]} 24. Qe3 {[%emt 0:06:59]} Nf5 {[%emt 0:02:10]} 25. Nxf5 {[%emt 0:01:39]} gxf5 {[%emt 0:00:14]} 26. Qh3 {[%emt 0:01:01]} Qf7 {[%emt 0:01:18]} 27. Bf4 {[%emt 0:00:19]} Kg7 {[%emt 0:01:48]} 28. Rd3 {[%emt 0:01:43]} Qg6 {[%emt 0:04:09]} 29. Qh2 {[%emt 0:00:31]} Rh8 {[%emt 0:15:20]} 30. Rh3 {[%emt 0:00:26]} Rh7 {[%emt 0:01:09]} 31. Rh4 {[%emt 0:03:42]} Kg8 {[%emt 0:03:00]} 32. Bd3 {[%emt 0:00:14]} Nf8 {[%emt 0:04:12]} 33. Be2 {[%emt 0:03:10]} Qg7 {[%emt 0:04:16]} 34. Bxh5 {[%emt 0:01:04]} Ng6 {[%emt 0:00:35]} 35. Bxg6 {[%emt 0:00:56]} Qxg6 {[%emt 0:00:33]} 36. Be5 {[%emt 0:01:12]} Rxh4 {[%emt 0:02:04]} 37. Qxh4 {[%emt 0:00:01]} Kf7 {[%emt 0:01:26]} 38. Re3 {[%emt 0:00:44]} Rc1+ {[%emt 0:02:46]} 39. Kh2 {[%emt 0:00:02]} f4 {[%emt 0:00:17]} 40. Rf3 {[%emt 0:01:33]} Ke7 {[%emt 0:01:12]} 41. Qxf4 {[%emt 0:00:38]} Rc8 {[%emt 0:00:12]} 42. Qf6+ {[%emt 0:00:56]} Qxf6 {[%emt 0:00:07]} 43. gxf6+ {[%emt 0:00:12]} Kf7 {[%emt 0:00:22]} 44. Rh3 {[%emt 0:00:13]} Bc6 {[%emt 0:00:43]} 45. Rh7+ {[%emt 0:00:15]} Kg6 {[%emt 0:00:52]} 46. Rg7+ {[%emt 0:00:09]} Kf5 {[%emt 0:00:42]} 47. f3 {[%emt 0:00:12]} 1-0